bitfinex/quotes_SOLUSD_20220109
["timestamp","ask_amount","ask_price","bid_price","bid_amount"]
[1641722038825,3.0,139.11,138.98,46.24311312]
[1641722039727,10.7941,139.06,138.98,46.24311312]
[1641722039927,3.0,139.11,138.98,46.24311312]
[1641722040327,1.55,139.11,138.98,46.24311312]
[1641722040532,3.0,139.1,139.04,10.7901]
[1641722040729,1.55,139.11,139.04,10.7901]
[1641722040930,1.55,139.11,139.04,21.1701]
[1641722041130,1.55,139.11,139.05,26.58551941]
[1641722041530,94.35024636,139.17,139.05,26.58551941]
[1641722041733,10.7869,139.16,139.09,10.7862]
[1641722042033,19.756574,139.16,139.05,26.58551941]
[1641722042229,14.6128376,139.16,139.05,26.58551941]
[1641722042429,16.1628376,139.16,139.04,57.6751]
[1641722042830,3.8259376,139.15,139.06,10.7881]
[1641722043031,5.47939073,139.15,139.04,57.6751]
[1641722043431,5.47939073,139.15,139.04,87.66426618]
[1641722044033,10.7898,139.12,139.05,10.7894]
[1641722044332,10.7898,139.12,139.04,57.6751]
[1641722044534,3.0,139.11,139.04,10.38]
[1641722044730,3.0,139.11,139.01,10.38]
[1641722044934,8.47939073,139.11,139.01,10.38]
[1641722045933,10.7919,139.09,139.01,21.1727]
[1641722046133,3.8259376,139.1,139.01,21.1727]
[1641722046534,1.55,139.09,139.01,10.38]
[1641722046736,1.55,139.09,138.99,30.96574805]
[1641722047335,3.8259376,139.08,139.02,10.7919]
[1641722047534,3.8259376,139.08,138.99,41.34574805]
[1641722049034,3.8259376,139.1,138.99,41.34574805]
[1641722049239,10.7932,139.07,139.01,10.7928]
[1641722049634,10.7932,139.07,138.99,41.34574805]
[1641722050238,10.792,139.08,139.02,10.792]
[1641722050537,35.9784,139.1,138.99,41.34574805]
[1641722050738,42.01969323,139.12,139.0,3.0]
[1641722050941,1.65345313,139.09,138.99,10.38]
[1641722051139,22.92153566,139.09,138.97,22.9571]
[1641722051342,10.7993,139.01,138.94,84.4991]
[1641722051739,10.7993,139.01,138.94,10.38]
[1641722051941,10.7993,139.01,138.91,154.753]
[1641722052940,10.7993,139.01,138.91,165.5535]
[1641722053640,3.0,139.0,138.91,165.5535]
[1641722054139,3.0,138.99,138.87,10.38]
[1641722054342,3.0,138.99,138.85,10.38]
[1641722054545,3.0,138.98,138.85,10.38]
[1641722054741,13.38,138.98,138.82,94.7]
[1641722054946,10.8095,138.92,138.82,94.7]
[1641722055243,19.5805,138.92,138.78,28.14399139]
[1641722055543,12.03345313,138.91,138.78,28.14399139]
[1641722055944,10.8144,138.85,138.78,28.14399139]
[1641722056944,10.8144,138.85,138.79,10.38]
[1641722058844,10.8144,138.85,138.79,21.1899]
[1641722059444,10.8144,138.85,138.79,10.38]
[1641722059944,10.8144,138.85,138.77,94.7]
[1641722060148,18.0514,138.85,138.77,94.7]
[1641722060446,8.01290413,138.84,138.75,0.36022109]
[1641722060644,10.8216,138.8,138.75,0.36022109]
[1641722060847,16.4206,138.8,138.75,0.36022109]
[1641722061446,10.8216,138.8,138.75,0.36022109]
[1641722062245,10.8153,138.81,138.75,0.36022109]
[1641722062647,10.8153,138.81,138.75,22.82805854]
[1641722062859,12.03345313,138.89,138.75,22.82805854]
[1641722063149,10.38,138.89,138.79,10.8099]
[1641722063345,11.423005,138.88,138.75,0.36022109]
[1641722063548,22.05129413,138.88,138.75,0.36022109]
[1641722063948,20.397841,138.87,138.75,10.74022109]
[1641722064147,8.974836,138.86,138.75,35.14969031]
[1641722064346,10.8118,138.87,138.76,0.25]
[1641722065047,10.8118,138.87,138.75,10.74022109]
[1641722065249,21.23525313,138.87,138.75,0.36022109]
[1641722065449,12.46525313,138.87,138.75,0.36022109]
[1641722065652,21.1907,138.88,138.75,0.36022109]
[1641722065851,16.031436,138.87,138.75,0.36022109]
[1641722066050,16.031436,138.87,138.75,28.97109203]
[1641722066253,25.002395,138.87,138.75,28.97109203]
[1641722066679,26.552395,138.87,138.75,0.36022109]
[1641722066880,12.3619,138.87,138.75,0.36022109]
[1641722067280,22.891608,138.86,138.75,0.36022109]
[1641722067481,11.425443,138.86,138.75,0.36022109]
[1641722067681,11.425443,138.85,138.75,0.36022109]
[1641722067883,10.8181,138.8,138.75,0.36022109]
[1641722068080,10.38,138.87,138.75,0.36022109]
[1641722068282,10.38,138.87,138.75,23.50691165]
[1641722068482,77.7285,138.94,138.75,23.50691165]
[1641722068681,1.55,138.87,138.76,34.1049]
[1641722068886,1.55,138.87,138.8,10.8095]
[1641722069783,90.3617,138.96,138.81,10.63]
[1641722069987,90.3617,138.96,138.82,25.98752684]
[1641722070385,10.8056,138.95,138.85,10.8056]
[1641722070585,11.419687,138.94,138.82,104.53222684]
[1641722070786,13.58345313,138.96,138.82,78.5447]
[1641722070986,11.93,138.96,138.83,10.63]
[1641722071184,1.55,138.96,138.83,10.63]
[1641722071386,1.55,138.96,138.89,10.8023]
[1641722071584,1.55,138.96,138.89,17.9193]
[1641722071785,10.38,139.02,138.89,17.9193]
[1641722071986,12.03345313,139.02,138.86,10.38]
[1641722072486,3.0,139.01,138.86,10.38]
[1641722072686,10.38,139.0,138.86,10.38]
[1641722072988,12.03345313,139.0,138.86,10.38]
[1641722073186,12.03345313,139.0,138.86,21.1848]
[1641722073387,10.38,139.0,138.87,0.25]
[1641722073587,10.38,139.0,138.87,10.63]
[1641722073789,10.38,139.0,138.88,22.69049086]
[1641722074188,3.0,139.01,138.94,10.7984]
[1641722074387,1.7759712,139.02,138.94,10.7984]
[1641722074588,12.03345313,139.04,138.94,10.7984]
[1641722074589,23.366615,139.01,138.94,10.7984]
[1641722074787,3.0,139.01,138.94,10.7984]
[1641722074988,3.0,139.02,138.91,31.99804062]
[1641722075189,3.0,139.02,138.9,82.4735]
[1641722075591,3.0,139.02,138.9,46.4791]
[1641722075788,6.20345313,139.02,138.9,46.4791]
[1641722075988,16.58345313,139.02,138.9,46.4791]
[1641722076189,18.84804,139.01,138.89,10.38]
[1641722076388,36.0159,139.0,138.86,10.38]
[1641722076589,45.41035313,139.0,138.86,10.38]
[1641722076788,40.59726513,138.99,138.87,25.29256628]
[1641722076988,40.88918513,138.99,138.87,25.29256628]
[1641722077189,31.804456,138.98,138.87,25.29256628]
[1641722077389,12.1559712,139.01,138.87,25.29256628]
[1641722077390,13.1943782,138.97,138.87,25.29256628]
[1641722077593,11.418407,138.96,138.87,25.29256628]
[1641722078091,11.418407,138.96,138.9,10.8016]
[1641722078289,1.55,138.97,138.9,10.8016]
[1641722078792,1.7759712,139.0,138.9,10.8016]
[1641722079591,1.7759712,139.0,138.88,10.8028]
[1641722079891,17.395427,138.99,138.88,10.8028]
[1641722080091,3.0,138.98,138.87,23.6941]
[1641722080291,10.8054,138.95,138.87,23.6941]
[1641722081793,12.2054,138.95,138.87,23.6941]
[1641722082794,13.9813712,138.95,138.87,23.6941]
[1641722082995,13.9813712,138.95,138.85,10.805]
[1641722083394,13.9813712,138.95,138.85,19.445]
[1641722083596,3.1759712,138.95,138.85,19.445]
[1641722084696,13.9811712,138.95,138.85,8.64]
[1641722085096,1.7759712,138.94,138.85,8.64]
[1641722085701,1.7759712,138.94,138.85,19.4455]
[1641722086101,1.7759712,138.95,138.85,19.4455]
[1641722086800,1.7759712,138.94,138.85,19.4455]
[1641722087602,1.7759712,138.93,138.85,19.4455]
[1641722088101,1.7759712,138.93,138.85,8.64]
[1641722088304,12.5826712,138.93,138.85,8.64]
[1641722088503,3.0,138.92,138.85,8.64]
[1641722089203,3.0,138.92,138.83,47.6216]
[1641722089404,11.416754,138.91,138.83,47.6216]
[1641722090003,12.966754,138.91,138.83,47.6216]
[1641722090204,1.55,138.91,138.83,82.12377263]
[1641722090406,1.7759712,138.92,138.83,90.76377263]
[1641722090603,1.7759712,138.92,138.84,0.25]
[1641722090805,6.04809323,138.98,138.85,84.64]
[1641722091006,6.04809323,138.98,138.86,0.25]
[1641722091304,6.04809323,139.01,138.87,8.64]
[1641722091505,10.8014,139.0,138.91,10.8005]
[1641722091705,11.407749,138.99,138.91,10.8005]
[1641722091906,3.64315237,139.0,138.91,10.8005]
[1641722092105,3.64315237,139.0,138.91,19.4405]
[1641722092512,3.0,138.99,138.91,19.4405]
[1641722093133,3.0,139.01,138.91,19.4405]
[1641722093738,82.42549323,139.04,138.91,19.4405]
[1641722093940,23.362159,139.03,138.91,42.3406]
[1641722094136,3.0,139.03,138.91,42.3406]
[1641722095038,20.02323878,139.02,138.91,42.3406]
[1641722095240,11.406929,139.01,138.91,42.3406]
[1641722095639,11.406929,139.01,138.91,8.64]
[1641722095843,46.741121,139.0,138.91,8.64]
[1641722096241,15.763436,138.99,138.91,8.64]
[1641722096442,15.763436,139.0,138.91,8.64]
[1641722096642,3.65858531,138.99,138.91,8.64]
[1641722097343,6.04809323,139.04,138.91,8.64]
[1641722097543,6.04809323,139.04,138.91,32.9551]
[1641722098044,6.84809323,139.04,138.91,43.756]
[1641722098242,3.69637767,139.03,138.91,43.756]
[1641722099045,3.0,139.02,138.91,43.756]
[1641722099243,11.41351,139.01,138.91,43.756]
[1641722099444,31.503555,139.01,138.91,43.756]
[1641722099643,35.19993267,139.01,138.91,8.64]
[1641722100045,11.415153,139.0,138.91,8.64]
[1641722100443,15.11153067,139.0,138.91,8.64]
[1641722100646,3.69637767,139.0,138.91,8.64]
[1641722100845,3.69637767,139.0,138.91,19.4412]
[1641722101047,3.69637767,138.99,138.91,19.4412]
[1641722101847,14.49587767,139.01,138.91,19.4412]
[1641722102246,3.69637767,139.0,138.91,19.4412]
[1641722102446,11.80437767,139.0,138.89,34.2746]
[1641722102648,11.80437767,139.0,138.85,8.64]
[1641722102846,25.03551013,138.99,138.84,72.8411]
[1641722103247,24.36021713,138.98,138.84,72.8411]
[1641722103447,37.197828,138.97,138.84,100.62693999]
[1641722103649,36.021,138.96,138.84,72.8411]
[1641722103847,8.97645313,138.97,138.84,72.8411]
[1641722104046,10.807,138.91,138.84,72.8411]
[1641722104246,10.807,138.91,138.84,48.0385]
[1641722104447,1.65345313,138.97,138.84,48.0385]
[1641722104647,37.67125313,138.97,138.84,81.46245005]
[1641722105047,10.8046,138.94,138.84,81.46245005]
[1641722105248,12.33637767,138.98,138.84,90.10245005]
[1641722105447,3.69637767,138.98,138.85,1.91345313]
[1641722105648,3.69637767,138.98,138.91,10.7994]
[1641722105848,3.69637767,138.96,138.91,10.7994]
[1641722106151,0.00627832,138.94,138.91,10.7994]
[1641722106547,6.04809323,139.03,138.91,10.7994]
[1641722106749,6.04809323,139.03,138.96,10.7974]
[1641722107149,11.412527,139.02,138.96,10.7974]
[1641722107349,15.15462508,139.02,138.92,47.0773]
[1641722107551,3.74209808,139.02,138.9,8.64]
[1641722107750,1.65345313,139.01,138.88,8.64]
[1641722107954,63.908314,139.0,138.88,19.4435]
[1641722108152,36.0114,139.0,138.88,19.4435]
[1641722108352,27.896914,138.99,138.88,43.86468327]
[1641722108552,10.8022,138.97,138.88,43.86468327]
[1641722108754,3.74209808,138.99,138.88,43.86468327]
[1641722108955,3.74209808,138.99,138.88,45.5181364]
[1641722109352,3.74209808,138.99,138.88,43.86468327]
[1641722109552,3.74209808,139.0,138.88,43.86468327]
[1641722109752,14.54209808,139.0,138.88,43.86468327]
[1641722110053,3.74209808,139.0,138.89,4.65345313]
[1641722110252,3.0,138.99,138.94,10.7986]
[1641722110654,3.8,139.0,138.94,10.7986]
[1641722111153,3.0,139.0,138.94,10.7986]
[1641722111953,11.42398,138.99,138.91,35.9951]
[1641722112153,15.12416696,138.99,138.93,10.7996]
[1641722112352,3.0,138.98,138.93,10.7996]
[1641722112552,14.42398,138.98,138.93,10.7996]
[1641722112957,6.70018696,138.98,138.93,10.7996]
[1641722113155,6.70018696,138.98,138.93,41.85860269]
[1641722113356,3.70018696,138.98,138.93,41.85860269]
[1641722113556,6.04809323,139.02,138.93,50.49860269]
[1641722113758,8.96979,139.01,138.93,50.49860269]
[1641722113959,6.04809323,139.02,138.93,50.49860269]
[1641722114158,254.65901554,139.16,138.93,50.49860269]
[1641722114159,3.84162667,139.01,138.93,50.49860269]
[1641722114358,3.84162667,139.01,138.97,10.7931]
[1641722114557,3.84162667,139.01,138.98,25.91821417]
[1641722115359,3.84162667,139.03,138.98,25.91821417]
[1641722115657,3.84162667,139.03,139.0,10.793]
[1641722115858,3.84162667,139.03,139.01,26.8144899]
[1641722116758,6.04809323,139.06,139.01,26.8144899]
[1641722116959,6.04809323,139.06,138.97,44.6187]
[1641722117160,6.04809323,139.06,138.98,3.0]
[1641722117360,6.04809323,139.06,138.97,44.6187]
[1641722117661,3.9723604,139.05,139.0,10.7941]
[1641722117863,3.9723604,139.05,138.95,74.4542]
[1641722118059,3.9723604,139.05,138.93,28.79778702]
[1641722118261,6.42581353,139.05,138.93,28.79778702]
[1641722118659,25.86141353,139.05,138.93,28.79778702]
[1641722119104,3.9723604,139.04,138.93,28.79778702]
[1641722119460,5.62581353,139.04,138.93,28.79778702]
[1641722119860,6.04809323,139.03,138.93,39.59738702]
[1641722120562,3.9723604,139.02,138.93,48.23738702]
[1641722121962,3.0,139.01,138.93,48.23738702]
[1641722122162,3.9723604,139.02,138.93,48.23738702]
[1641722122363,3.0,139.01,138.93,37.43778702]
[1641722122862,3.9723604,139.03,138.93,37.43778702]
[1641722123263,3.0,139.02,138.93,37.43778702]
[1641722123563,10.801,138.98,138.93,37.43778702]
[1641722123864,10.801,138.98,138.93,28.79778702]
[1641722124463,11.601,138.98,138.93,28.79778702]
[1641722124662,11.601,138.98,138.92,10.7997]
[1641722124865,11.601,138.98,138.91,22.9614]
[1641722125066,0.8,138.98,138.91,22.9614]
[1641722125464,3.0,139.0,138.91,22.9614]
[1641722125665,6.04809323,139.02,138.92,25.82708231]
[1641722125864,3.0,138.99,138.92,25.82708231]
[1641722126164,10.7992,139.0,138.92,25.82708231]
[1641722126463,4.07064606,138.98,138.92,25.82708231]
[1641722126866,4.07064606,138.98,138.93,10.7991]
[1641722127264,4.07064606,138.98,138.92,25.82708231]
[1641722128065,8.689,138.99,138.92,25.82708231]
[1641722128466,4.07064606,138.98,138.91,33.762]
[1641722129770,14.87084606,138.98,138.91,33.762]
[1641722130269,4.07064606,138.98,138.91,33.762]
[1641722130669,6.04809323,139.01,138.91,33.762]
[1641722131570,10.16883395,139.07,138.92,79.0]
[1641722131770,10.16883395,139.07,138.95,25.19103439]
[1641722131972,10.16883395,139.07,139.01,25.15471677]
[1641722132170,10.16883395,139.07,139.02,8.64]
[1641722132571,216.85079655,139.15,139.02,8.64]
[1641722132772,216.85079655,139.15,139.02,56.3465]
[1641722132976,3.0,139.14,139.05,10.79]
[1641722134097,10.7906,139.15,139.04,19.4309]
[1641722134798,10.7906,139.15,139.04,8.64]
[1641722134999,82.7406,139.15,139.01,8.64]
[1641722135198,82.7406,139.15,138.99,8.64]
[1641722135199,10.7967,139.07,138.99,8.64]
[1641722135399,18.0687,139.07,138.99,8.64]
[1641722136901,21.59797,139.06,138.99,8.64]
[1641722137104,11.42239,139.06,138.99,8.64]
[1641722137303,11.42239,139.05,138.99,8.64]
[1641722137503,11.42239,139.06,138.97,88.7554]
[1641722137803,3.0,139.04,138.97,10.7963]
[1641722138003,3.0,139.03,138.97,38.85780608]
[1641722138205,3.0,139.03,138.97,10.7963]
[1641722138403,10.7967,139.07,138.97,10.7963]
[1641722138604,3.0,139.06,138.97,10.7963]
[1641722140606,8.678,139.06,138.97,10.7963]
[1641722141208,19.4751,139.06,138.95,8.64]
[1641722141608,19.4751,139.06,138.94,120.8706]
[1641722141906,19.4751,139.06,138.94,73.3023]
[1641722142314,28.1151,139.06,138.94,73.3023]
[1641722142507,28.1151,139.06,138.91,19.4413]
[1641722142707,1.65345313,139.05,138.89,123.8597]
[1641722142907,83.002733,139.04,138.85,8.64]
[1641722143109,8.64,139.04,138.86,79.4246]
[1641722143707,8.64,139.04,138.87,28.64517343]
[1641722143908,61.611899,139.03,138.86,79.4246]
[1641722144107,61.611899,139.03,138.83,121.6517]
[1641722144108,10.8109,138.95,138.83,121.6517]
[1641722144408,19.4329,138.95,138.84,10.37]
[1641722144609,11.428954,138.94,138.84,10.37]
[1641722144812,11.428954,138.94,138.85,31.20938566]
[1641722145009,8.622,138.95,138.85,31.20938566]
[1641722145309,20.405878,138.94,138.85,31.20938566]
[1641722145509,7.1,138.96,138.85,31.20938566]
[1641722145710,36.0328,138.93,138.85,31.20938566]
[1641722146710,3.0,138.92,138.85,31.20938566]
[1641722146912,36.0366,138.92,138.85,31.20938566]
[1641722147111,3.0,138.91,138.85,31.20938566]
[1641722147313,10.8116,138.88,138.82,10.37]
[1641722148813,10.8116,138.88,138.81,56.13090756]
[1641722149014,10.8104,138.89,138.81,64.78090756]
[1641722150013,10.8104,138.89,138.81,33.0907]
[1641722150415,3.0,138.88,138.81,33.0907]
[1641722150614,36.0362,138.92,138.81,33.0907]
[1641722150814,3.0,138.91,138.81,33.0907]
[1641722151415,36.0314,138.94,138.81,56.39551062]
[1641722151615,13.81,138.9,138.81,56.39551062]
[1641722151817,10.81,138.9,138.81,56.39551062]
[1641722152015,8.65,138.95,138.81,56.39551062]
[1641722152217,44.678,138.95,138.81,67.20461062]
[1641722152717,10.8084,138.92,138.81,67.20461062]
[1641722153119,2.376281,138.95,138.82,76.0]
[1641722153320,2.376281,138.95,138.82,110.43695313]
[1641722153720,2.376281,138.95,138.82,108.7835]
[1641722153922,10.8092,138.91,138.82,108.7835]
[1641722154120,2.376281,138.95,138.82,119.5919]
[1641722154527,67.7649,138.97,138.82,119.5919]
[1641722154726,31.7411,138.97,138.84,24.91400875]
[1641722155029,31.7411,138.97,138.84,98.00100875]
[1641722155626,10.8058,138.95,138.85,10.8055]
[1641722156526,10.8058,138.95,138.84,24.91400875]
[1641722156726,39.0311,138.94,138.82,24.1335]
[1641722156927,3.0,138.94,138.82,24.1335]
[1641722157929,10.8111,138.89,138.82,24.1335]
[1641722158327,36.0356,138.93,138.82,24.1335]
[1641722159234,10.8101,138.9,138.82,24.1335]
[1641722159830,31.7411,138.97,138.82,24.1335]
[1641722160238,10.8094,138.91,138.82,24.1335]
[1641722160452,31.7411,138.97,138.83,3.0]
[1641722160661,31.7411,138.97,138.84,24.93956335]
[1641722160862,8.65,138.97,138.84,24.93956335]
[1641722161059,78.8998,138.99,138.85,0.25]
[1641722161457,8.65,139.0,138.85,0.25]
[1641722161458,10.8026,139.0,138.9,10.8015]
[1641722161663,8.65,139.02,138.89,25.53162016]
[1641722163061,3.0,139.01,138.89,25.53162016]
[1641722163561,3.0,139.01,138.92,10.8002]
[1641722163960,3.0,139.01,138.92,42.25767601]
[1641722165266,13.8006,139.01,138.92,42.25767601]
[1641722165463,13.8006,139.01,138.92,10.8002]
[1641722166764,3.0,139.01,138.92,34.21559013]
[1641722167164,76.0175,139.05,138.97,10.7948]
[1641722167365,8.65,139.07,138.97,10.7948]
[1641722167564,8.65,139.07,138.93,122.4005]
[1641722167565,20.37027,139.06,138.93,122.4005]
[1641722167766,8.65,139.07,138.93,131.0505]
[1641722167964,8.65,139.07,138.93,167.0386]
[1641722168366,35.82,139.06,138.91,10.8008]
[1641722168567,44.47,139.05,138.88,26.40941702]
[1641722168867,8.65,139.04,138.88,26.40941702]
[1641722169467,8.65,139.04,138.88,49.47621702]
[1641722169870,8.65,139.04,138.88,60.27941702]
[1641722170270,8.65,139.04,138.88,49.47621702]
[1641722170868,3.0,139.03,138.88,49.47621702]
[1641722171069,8.65,139.02,138.88,26.40941702]
[1641722171272,53.335387,139.01,138.83,22.9415]
[1641722171469,10.8083,138.92,138.83,22.9415]
[1641722171668,19.3853,138.92,138.83,22.9415]
[1641722172369,19.3853,138.92,138.83,53.63697936]
[1641722173773,10.8083,138.92,138.83,53.63697936]
[1641722174471,3.0,138.91,138.83,53.63697936]
[1641722174672,10.8087,138.9,138.83,53.63697936]
[1641722175872,36.0248,138.95,138.83,53.63697936]
[1641722176074,3.0,138.94,138.83,53.63697936]
[1641722176375,3.0,138.94,138.83,64.44397936]
[1641722176573,8.65,138.96,138.83,64.44397936]
[1641722176774,8.65,138.96,138.83,53.63697936]
[1641722176775,3.0,138.93,138.83,53.63697936]
[1641722176974,10.8071,138.92,138.83,53.63697936]
[1641722177175,13.8071,138.92,138.83,53.63697936]
[1641722177881,10.8071,138.92,138.83,53.63697936]
[1641722178578,10.8071,138.92,138.83,22.9415]
[1641722179575,10.8071,138.92,138.83,47.59874838]
[1641722180581,10.8063,138.93,138.83,47.59874838]
[1641722181580,3.0,138.92,138.83,47.59874838]
[1641722181779,3.0,138.92,138.83,58.40594838]
[1641722182281,10.807,138.92,138.83,58.40594838]
[1641722182480,44.6716,138.96,138.83,58.40594838]
[1641722182681,8.65,138.96,138.83,58.40594838]
[1641722183182,10.8076,138.91,138.83,22.9415]
[1641722183384,6.284,138.92,138.83,22.9415]
[1641722183582,16.315625,138.91,138.83,22.9415]
[1641722184082,27.733233,138.91,138.81,24.4401]
[1641722184284,10.8147,138.85,138.78,76.7983]
[1641722184484,10.8147,138.85,138.77,24.61590881]
[1641722185584,10.8099,138.89,138.77,24.61590881]
[1641722186614,10.8099,138.89,138.77,48.68050881]
[1641722186785,10.8099,138.89,138.79,10.8096]
[1641722186987,10.8099,138.89,138.77,48.68050881]
[1641722187185,10.8088,138.9,138.77,48.68050881]
[1641722187686,32.9365,138.95,138.78,0.25]
[1641722187988,8.65,138.95,138.8,26.80607209]
[1641722188187,8.65,138.95,138.81,22.627]
[1641722188586,34.778128,138.94,138.81,22.627]
[1641722188986,38.707079,138.93,138.81,22.627]
[1641722189387,41.860227,138.93,138.81,22.627]
[1641722189997,8.65,138.92,138.78,98.6589]
[1641722190187,8.65,138.92,138.78,45.7267]
[1641722190591,10.30345313,138.92,138.78,45.7267]
[1641722190791,8.65,138.92,138.79,26.3681954]
[1641722191791,10.8149,138.85,138.79,26.3681954]
[1641722192994,3.0,138.84,138.79,26.3681954]
[1641722193295,10.8144,138.83,138.79,26.3681954]
[1641722193495,10.8144,138.83,138.78,45.7267]
[1641722193696,18.7644,138.83,138.75,2.11531889]
[1641722194620,10.8144,138.83,138.75,2.11531889]
[1641722194824,10.8182,138.79,138.75,2.11531889]
[1641722196021,47.704,138.84,138.75,2.11531889]
[1641722196221,30.422141,138.83,138.75,2.11531889]
[1641722196422,11.65,138.84,138.75,2.11531889]
[1641722196620,8.65,138.84,138.75,2.11531889]
[1641722196821,47.2764,138.86,138.75,2.11531889]
[1641722197020,128.32580043,138.87,138.75,2.11531889]
[1641722197220,20.372399,138.86,138.75,2.11531889]
[1641722197423,10.8137,138.84,138.75,12.92851889]
[1641722199225,3.9371782,138.86,138.75,12.92851889]
[1641722199427,5.2287,138.85,138.75,12.92851889]
[1641722199624,122.37656409,138.87,138.75,12.92851889]
[1641722200328,3.0,138.86,138.75,12.92851889]
[1641722200526,13.8117,138.86,138.75,14.58197202]
[1641722200929,13.8117,138.86,138.75,12.92851889]
[1641722201727,13.8117,138.86,138.75,11.17342109]
[1641722202027,13.8117,138.86,138.75,0.36022109]
[1641722202028,42.59536,138.85,138.75,0.36022109]
[1641722202428,6.9371782,138.86,138.75,0.36022109]
[1641722202626,15.5871782,138.86,138.75,0.36022109]
[1641722202826,3.9371782,138.85,138.75,0.36022109]
[1641722203028,11.417635,138.84,138.75,0.36022109]
[1641722203326,66.65295113,138.84,138.75,0.36022109]
[1641722203727,3.9371782,138.82,138.75,0.36022109]
[1641722203927,18.228011,138.81,138.75,0.36022109]
[1641722204126,10.8204,138.78,138.75,0.36022109]
[1641722204328,12.5871782,138.82,138.75,0.36022109]
[1641722204329,6.06439994,138.77,138.75,0.36022109]
[1641722205730,16.88319994,138.77,138.75,0.36022109]
[1641722207129,6.06439994,138.77,138.75,0.36022109]
[1641722208734,16.88309994,138.77,138.75,0.36022109]
[1641722209637,6.06439994,138.77,138.75,0.36022109]
[1641722210737,16.88329994,138.77,138.75,0.36022109]
[1641722211841,33.0,138.76,138.75,0.36022109]
[1641722212040,43.8198,138.76,138.75,0.36022109]
[1641722212242,13.8198,138.76,138.75,0.36022109]
[1641722212540,1.92793809,138.77,138.66,8.65]
[1641722212940,1.92793809,138.77,138.67,29.30795255]
[1641722213542,1.92793809,138.78,138.67,29.30795255]
[1641722214340,10.819,138.77,138.67,40.12775255]
[1641722215843,10.819,138.77,138.66,22.86405313]
[1641722216043,10.819,138.77,138.66,21.2106]
[1641722217047,12.74693809,138.77,138.68,10.8192]
[1641722217247,12.74693809,138.77,138.67,29.95784588]
[1641722217646,10.819,138.77,138.67,29.95784588]
[1641722220552,3.0,138.76,138.67,29.95784588]
[1641722220953,1.92793809,138.78,138.64,135.5088]
[1641722221154,3.0,138.75,138.64,135.5088]
[1641722221352,1.92793809,138.77,138.65,3.0]
[1641722221553,4.92793809,138.77,138.65,3.0]
[1641722221751,15.74733809,138.77,138.65,3.0]
[1641722221953,15.74733809,138.77,138.66,24.76513799]
[1641722222153,1.92793809,138.76,138.66,24.76513799]
[1641722222355,1.92793809,138.76,138.67,0.25]
[1641722222556,1.92793809,138.76,138.67,1.90345313]
[1641722222751,4.92793809,138.77,138.67,1.90345313]
[1641722222952,4.92793809,138.77,138.69,25.88012505]
[1641722223351,1.92793809,138.77,138.69,25.88012505]
[1641722223853,1.92793809,138.78,138.69,25.88012505]
[1641722224056,1.92793809,138.78,138.69,36.69842505]
[1641722224454,1.92793809,138.77,138.69,25.88012505]
[1641722224854,1.92793809,138.77,138.68,24.088]
[1641722225054,10.8206,138.75,138.68,24.088]
[1641722225955,1.92793809,138.77,138.68,24.088]
[1641722226562,1.92793809,138.78,138.68,24.088]
[1641722226963,3.0,138.77,138.68,24.088]
[1641722227362,3.0,138.77,138.68,34.9067]
[1641722227763,1.92793809,138.78,138.68,34.9067]
[1641722227986,1.92793809,138.77,138.68,34.9067]
[1641722229284,1.92793809,138.78,138.68,34.9067]
[1641722230186,1.92793809,138.78,138.68,36.56015313]
[1641722230587,10.8179,138.79,138.68,36.56015313]
[1641722231887,14.7537782,138.8,138.68,36.56015313]
[1641722232288,14.7537782,138.8,138.68,46.95015313]
[1641722232691,3.9371782,138.8,138.69,0.25]
[1641722232890,3.9371782,138.8,138.74,10.8105]